fUSD/lending_fUSD_20240425
["ID","MTS","AMOUNT","RATE_DAILY","PERIOD"]
[323508012,1714059047174,-500.0,0.00010999,2]
[323508013,1714059047185,-500.0,0.00010999,2]
[323508014,1714059047194,-502.09759066,0.00010999,2]
[323508015,1714059047204,-500.0,0.00010999,2]
[323508016,1714059047214,-629.54386503,0.00010999,2]
[323508017,1714059047223,-2043.0,0.00010999,2]
[323508018,1714059047233,-500.0,0.00010999,2]
[323508019,1714059047242,-506.68252248,0.00010999,2]
[323508020,1714059047251,-559.81930247,0.00010999,2]
[323508021,1714059047262,-502.61763556,0.00010999,2]
[323508022,1714059047273,-500.0,0.00010999,2]
[323508023,1714059047282,-500.0,0.00010999,2]
[323508024,1714059047291,-500.0,0.00010999,2]
[323508025,1714059047300,-500.0,0.00010999,2]
[323508026,1714059047309,-500.0,0.00010999,2]
[323508027,1714059047319,-500.0,0.00010999,2]
[323508028,1714059047327,-500.0,0.00010999,2]
[323508029,1714059047336,-500.0,0.00010999,2]
[323508030,1714059047346,-500.0,0.00010999,2]
[323508031,1714059047355,-500.0,0.00010999,2]
[323508032,1714059047365,-500.0,0.00010999,2]
[323508033,1714059047374,-500.0,0.00010999,2]
[323508034,1714059047383,-500.0,0.00010999,2]
[323508035,1714059047393,-500.0,0.00010999,2]
[323508036,1714059047402,-500.0,0.00010999,2]
[323508037,1714059047411,-500.0,0.00010999,2]
[323508038,1714059047420,-500.0,0.00010999,2]
[323508039,1714059047429,-500.0,0.00010999,2]
[323508040,1714059047439,-503.77245645,0.00010999,2]
[323508041,1714059047448,-5875.09,0.00010999,2]
[323508042,1714059047457,-500.0,0.00010999,2]
[323508043,1714059047466,-500.0,0.00010999,2]
[323508044,1714059047476,-500.0,0.00010999,2]
[323508045,1714059047485,-500.0,0.00010999,2]
[323508046,1714059047494,-500.0,0.00010999,2]
[323508047,1714059047504,-504.14975902,0.00010999,2]
[323508048,1714059047514,-500.0,0.00010999,2]
[323508049,1714059047524,-169.7683502,0.00010999,2]
[323508050,1714059047534,-1728.53,0.00010999,2]
[323508051,1714059047543,-500.0,0.00010999,2]
[323508052,1714059047553,-500.0,0.00010999,2]
[323508053,1714059047563,-500.0,0.00010999,2]
[323508054,1714059047573,-500.0,0.00010999,2]
[323508055,1714059047584,-500.0,0.00010999,2]
[323508056,1714059047594,-500.0,0.00010999,2]
[323508057,1714059047603,-501.02110323,0.00010999,2]
[323508058,1714059047614,-500.0,0.00010999,2]
[323508059,1714059047624,-7367.99,0.00010999,2]
[323508060,1714059047634,-500.0,0.00010999,2]
[323508061,1714059047644,-500.0,0.00010999,2]
[323508062,1714059047653,-500.0,0.00010999,2]
[323508063,1714059047662,-501.26739429,0.00010999,2]
[323508064,1714059047672,-500.0,0.00010999,2]
[323508065,1714059047682,-500.0,0.00010999,2]
[323508066,1714059047691,-501.73913833,0.00010999,2]
[323508067,1714059047700,-500.0,0.00010999,2]
[323508068,1714059047710,-500.0,0.00010999,2]
[323508069,1714059047719,-500.0,0.00010999,2]
[323508070,1714059047728,-500.0,0.00010999,2]
[323508071,1714059047740,-500.0,0.00010999,2]
[323508072,1714059047749,-500.0,0.00010999,2]
[323508073,1714059047758,-500.0,0.00010999,2]
[323508074,1714059047769,-500.0,0.00010999,2]
[323508075,1714059047779,-502.75257128,0.00010999,2]
[323508076,1714059047788,-500.0,0.00010999,2]
[323508077,1714059047797,-500.0,0.00010999,2]
[323508078,1714059047807,-500.0,0.00010999,2]
[323508079,1714059047819,-500.0,0.00010999,2]
[323508080,1714059047829,-501.10370594,0.00010999,2]
[323508081,1714059047838,-500.0,0.00010999,2]
[323508082,1714059047847,-500.0,0.00010999,2]
[323508083,1714059047857,-500.0,0.00010999,2]
[323508084,1714059047866,-3915.64,0.00010999,2]
[323508085,1714059047875,-502.08691385,0.00010999,2]
[323508086,1714059047885,-504.50416195,0.00010999,2]
[323508087,1714059047894,-500.0,0.00010999,2]
[323508088,1714059047903,-500.0,0.00010999,2]
[323508089,1714059047913,-46133.20766958,0.00011,2]
[323508090,1714059047922,-441.23922494,0.00011,2]
[323508091,1714059047932,-160.5,0.00011,2]
[323508092,1714059047941,-179.34240057,0.00011035,2]
[323508093,1714059047950,-201.41139642,0.00011035,2]
[323508094,1714059047960,-37480.93218957,0.00011073,2]
[323508095,1714059048595,-6566.03609594,0.00011073,2]
[323508096,1714059048607,-7289.9674728,0.00011073,2]
[323508097,1714059048619,-32990.49499823,0.00011073,2]
[323508098,1714059048630,-20614.8706778,0.00011073,2]
[323508099,1714059049899,-529.12011047,0.00010995,2]
[323508100,1714059049936,-1.10988953,0.00010995,2]
[323508101,1714059049945,-500.0,0.00010995,2]
[323508102,1714059049955,-284.32561242,0.00010995,2]
[323508103,1714059049964,-500.0,0.00010995,2]
[323508104,1714059049974,-500.0,0.00010995,2]
[323508105,1714059049983,-500.0,0.00010996,2]
[323508106,1714059049993,-590.01,0.00010996,2]
[323508107,1714059050003,-500.0,0.00010999,2]
[323508108,1714059050012,-500.0,0.00010999,2]
[323508109,1714059050024,-355.91439222,0.00011,2]
[323508110,1714059050034,-735.29242253,0.00011073,2]
[323508111,1714059050091,-12297.60155568,0.00011073,2]
[323508112,1714059050101,-179.34240057,0.0001117,2]
[323508113,1714059050110,-3470.53,0.0001117,2]
[323508114,1714059050120,-1589.0502104,0.00011171,2]
[323508115,1714059050131,-201.41139642,0.00011172,2]
[323508116,1714059050140,-3000.0,0.000112,4]
[323508117,1714059050150,-1589.05021031,0.00011237,2]
[323508118,1714059050159,-150.0,0.00011246,2]
[323508119,1714059050169,-230.29248306,0.00011268,2]
[323508120,1714059050178,-912.55657339,0.00011268,2]
[323508121,1714059050188,-778.75279693,0.00011268,2]
[323508122,1714059050197,-532.89332388,0.00011268,2]
[323508123,1714059050207,-155.24916091,0.00011269,2]
[323508124,1714059050217,-972.50600752,0.00011269,2]
[323508125,1714059050226,-1285.53,0.00011269,2]
[323508126,1714059050236,-500.0,0.00011269,2]
[323508127,1714059050245,-500.0,0.00011269,2]
[323508128,1714059050255,-582.7,0.00011269,2]
[323508129,1714059050267,-500.0,0.00011269,2]
[323508130,1714059050277,-1070.50799097,0.00011269,3]
[323508131,1714059050287,-1404.61,0.00011269,2]
[323508132,1714059050296,-500.0,0.00011269,2]
[323508133,1714059050306,-500.0,0.00011269,2]
[323508134,1714059050316,-772.79,0.00011269,2]
[323508135,1714059050325,-6923.7,0.00011269,2]
[323508136,1714059050334,-500.0,0.00011269,2]
[323508137,1714059050344,-3042.8,0.00011269,2]
[323508138,1714059050355,-4452.19,0.00011269,2]
[323508139,1714059050365,-500.0,0.00011269,2]
[323508140,1714059050375,-857.94,0.00011269,2]
[323508141,1714059050385,-500.0,0.00011269,2]
[323508142,1714059050396,-2130.51,0.00011269,2]
[323508143,1714059050406,-500.0,0.00011269,2]
[323508144,1714059050416,-677.62,0.00011269,2]
[323508145,1714059050426,-500.0,0.00011269,2]
[323508146,1714059050435,-656.76,0.00011269,2]
[323508147,1714059050445,-2711.66,0.00011269,2]
[323508148,1714059050454,-500.0,0.00011269,2]
[323508149,1714059050464,-500.0,0.00011269,2]
[323508150,1714059050473,-5260.5,0.00011269,2]
[323508151,1714059050482,-855.68,0.00011269,2]
[323508152,1714059050492,-678.72,0.00011269,2]
[323508153,1714059050501,-500.0,0.00011269,2]
[323508154,1714059050510,-500.0,0.00011269,2]
[323508155,1714059050524,-500.0,0.00011269,2]
[323508156,1714059050533,-240.12,0.00011269,2]
[323508157,1714059050542,-500.0,0.00011269,2]
[323508158,1714059050552,-500.0,0.00011269,2]
[323508159,1714059050560,-500.0,0.00011269,2]
[323508160,1714059050569,-500.0,0.00011269,2]
[323508161,1714059050779,-797.71,0.00011269,2]
[323508162,1714059050793,-500.0,0.00011269,2]
[323508163,1714059050804,-18150.15,0.00011269,2]
[323508164,1714059050813,-500.0,0.00011269,2]
[323508165,1714059050822,-500.0,0.00011269,2]
[323508166,1714059050832,-500.0,0.00011269,2]
[323508167,1714059050841,-500.0,0.0001127,2]
[323508168,1714059050850,-500.0,0.0001127,2]
[323508169,1714059050859,-500.0,0.0001127,2]
[323508170,1714059050869,-501.3469974,0.0001127,2]
[323508171,1714059050878,-613.85,0.0001127,2]
[323508172,1714059050887,-500.0,0.0001127,2]
[323508173,1714059050897,-500.0,0.0001127,2]
[323508174,1714059050907,-500.0,0.0001127,2]
[323508175,1714059050916,-499.17297707,0.0001127,2]
[323508176,1714059050925,-436.86768793,0.0001127,2]
[323508177,1714059050935,-526.29,0.0001127,2]
[323508178,1714059050944,-500.0,0.0001127,2]
[323508179,1714059050954,-500.0,0.0001127,2]
[323508180,1714059050964,-501.13485296,0.0001127,2]
[323508181,1714059050973,-501.01733721,0.0001127,2]
[323508182,1714059050983,-500.0,0.0001127,2]
[323508183,1714059050993,-622.9,0.0001127,2]
[323508184,1714059051002,-280.6806187,0.0001127,2]
[323508185,1714059051012,-500.0,0.0001127,2]
[323508186,1714059051025,-500.0,0.0001127,2]
[323508187,1714059051034,-555.41,0.0001127,2]
[323508188,1714059051043,-501.70859875,0.0001127,2]
[323508189,1714059051053,-500.38141044,0.0001127,2]
[323508190,1714059051062,-500.0,0.0001127,2]
[323508191,1714059051072,-704.3,0.0001127,2]
[323508192,1714059051082,-500.0,0.0001127,2]
[323508193,1714059051091,-266.91844622,0.0001127,2]
[323508194,1714059051100,-500.0,0.0001127,2]
[323508195,1714059051109,-500.0,0.0001127,2]
[323508196,1714059051119,-500.0,0.0001127,2]
[323508197,1714059051128,-500.0,0.0001127,2]
[323508198,1714059051137,-500.0,0.0001127,2]
[323508199,1714059051147,-500.0,0.0001127,2]
[323508200,1714059051156,-500.0,0.0001127,2]
[323508201,1714059051165,-500.0,0.0001127,2]
[323508202,1714059051174,-500.0,0.0001127,2]
[323508203,1714059051184,-500.0,0.0001127,2]
[323508204,1714059051193,-465.4424497,0.0001127,2]
[323508205,1714059051203,-500.0,0.0001127,2]
[323508206,1714059051213,-500.0,0.0001127,2]
[323508207,1714059051223,-500.0,0.0001127,2]
[323508208,1714059051233,-500.0,0.0001127,2]
[323508209,1714059051243,-500.0,0.0001127,2]
[323508210,1714059051253,-500.0,0.0001127,2]
[323508211,1714059051263,-500.0,0.0001127,2]
[323508212,1714059051275,-500.0,0.0001127,2]
[323508213,1714059051284,-500.0,0.0001127,2]
[323508214,1714059051293,-620.13227685,0.0001127,2]
[323508215,1714059051302,-500.0,0.0001127,2]
[323508216,1714059051311,-500.0,0.0001127,2]
[323508217,1714059051320,-500.0,0.0001127,2]
[323508218,1714059051330,-500.0,0.0001127,2]
[323508219,1714059051341,-500.0,0.0001127,2]
[323508220,1714059051350,-500.0,0.0001127,2]
[323508221,1714059051360,-500.0,0.0001127,2]
[323508222,1714059051369,-500.0,0.0001127,2]
[323508223,1714059051378,-500.0,0.0001127,2]
[323508224,1714059051387,-625.59933417,0.0001127,2]
[323508225,1714059051396,-500.0,0.0001127,2]
[323508226,1714059051406,-931.81,0.0001127,2]
[323508227,1714059051415,-186.23596096,0.0001127,2]
[323508228,1714059051424,-500.0,0.0001127,2]
[323508229,1714059051434,-500.0,0.0001127,2]
[323508230,1714059051443,-500.0,0.0001127,2]
[323508231,1714059051453,-502.28,0.0001127,2]
[323508232,1714059051462,-500.0,0.0001127,2]
[323508233,1714059051472,-507.58,0.0001127,2]
[323508234,1714059051481,-500.0,0.0001127,2]
[323508235,1714059051490,-500.0,0.0001127,2]
[323508236,1714059051500,-150.0,0.0001127,2]
[323508237,1714059051510,-500.0,0.0001127,2]
[323508238,1714059051521,-500.0,0.0001127,2]
[323508239,1714059051531,-500.0,0.0001127,2]
[323508240,1714059051540,-500.0,0.0001127,2]
[323508241,1714059051550,-500.0,0.0001127,2]
[323508242,1714059051561,-500.0,0.0001127,2]
[323508243,1714059051571,-500.0,0.0001127,2]
[323508244,1714059051580,-500.0,0.0001127,2]
[323508245,1714059051589,-500.0,0.0001127,2]
[323508246,1714059051599,-500.0,0.0001127,2]
[323508247,1714059051609,-500.0,0.0001127,2]
[323508248,1714059051619,-500.0,0.0001127,2]
[323508249,1714059051628,-500.0,0.0001127,2]
[323508250,1714059051638,-500.0,0.0001127,2]
[323508251,1714059051647,-2221.47,0.0001127,2]
[323508252,1714059051657,-763.48,0.0001127,2]
[323508253,1714059051666,-500.0,0.0001127,2]
[323508254,1714059051676,-500.0,0.0001127,2]
[323508255,1714059051685,-500.0,0.0001127,2]
[323508256,1714059051695,-3166.59,0.0001127,2]
[323508257,1714059051704,-500.0,0.0001127,2]
[323508258,1714059051714,-500.0,0.0001127,2]
[323508259,1714059051724,-1916.62,0.0001127,2]
[323508260,1714059051734,-500.0,0.0001127,2]
[323508261,1714059051746,-639.23,0.0001127,2]
[323508262,1714059051756,-500.0,0.0001127,2]
[323508263,1714059051768,-1586.58,0.0001127,2]
[323508264,1714059051778,-500.0,0.0001127,2]
[323508265,1714059051787,-606.16,0.0001127,2]
[323508266,1714059051797,-500.0,0.0001127,2]
[323508267,1714059051806,-841.71,0.0001127,2]
[323508268,1714059051816,-500.0,0.0001127,2]
[323508269,1714059051827,-500.0,0.0001127,2]
[323508270,1714059051837,-500.0,0.0001127,2]
[323508271,1714059051846,-500.0,0.0001127,2]
[323508272,1714059051856,-1223.13,0.0001127,2]
[323508273,1714059051865,-500.0,0.0001127,2]
[323508274,1714059051874,-500.0,0.0001127,2]
[323508275,1714059051884,-503.89437804,0.0001127,2]
[323508276,1714059051893,-5019.31,0.0001127,2]
[323508277,1714059051903,-821.68,0.0001127,2]
[323508278,1714059051912,-500.0,0.0001127,2]
[323508279,1714059051922,-500.0,0.0001127,2]
[323508280,1714059051931,-500.0,0.0001127,2]
[323508281,1714059051940,-4077.42,0.0001127,2]
[323508282,1714059051949,-500.0,0.0001127,2]
[323508283,1714059051959,-500.0,0.0001127,2]
[323508284,1714059051968,-500.0,0.0001127,2]
[323508285,1714059051977,-1757.65,0.0001127,2]
[323508286,1714059051987,-3500.5,0.0001127,2]
[323508287,1714059051996,-2177.25,0.0001127,2]
[323508288,1714059052006,-500.0,0.0001127,2]
[323508289,1714059052017,-594.8,0.0001127,2]
[323508290,1714059052026,-500.0,0.0001127,2]
[323508291,1714059052035,-500.0,0.0001127,2]
[323508292,1714059052044,-500.0,0.0001127,2]
[323508293,1714059052053,-500.0,0.0001127,2]
[323508294,1714059052062,-705.06,0.0001127,2]
[323508295,1714059052072,-803.98,0.0001127,2]
[323508296,1714059052081,-500.0,0.0001127,2]
[323508297,1714059052091,-500.0,0.0001127,2]
[323508298,1714059052100,-522.9,0.0001127,2]
[323508299,1714059052109,-319.73894394,0.0001127,2]
[323508300,1714059052119,-500.0,0.0001127,2]
[323508301,1714059052128,-500.0,0.0001127,2]
[323508302,1714059052138,-500.0,0.0001127,2]
[323508303,1714059052147,-500.0,0.0001127,2]
[323508304,1714059052156,-500.0,0.0001127,2]
[323508305,1714059052166,-2500.13,0.0001127,2]
[323508306,1714059052176,-2201.38,0.0001127,2]
[323508307,1714059052185,-289.52815411,0.0001127,2]
[323508308,1714059052195,-542.42,0.0001127,2]
[323508309,1714059052205,-500.0,0.0001127,2]
[323508310,1714059052214,-1785.16,0.0001127,2]
[323508311,1714059052223,-500.0,0.0001127,2]
[323508312,1714059052232,-1640.01,0.0001127,2]
[323508313,1714059052241,-3127.15,0.0001127,2]
[323508314,1714059052250,-500.0,0.0001127,2]
[323508315,1714059052259,-500.0,0.0001127,2]
[323508316,1714059052270,-500.0,0.0001127,2]
[323508317,1714059052280,-500.0,0.0001127,2]
[323508318,1714059052290,-500.0,0.0001127,2]
[323508319,1714059052299,-1472.65,0.0001127,2]
[323508320,1714059052308,-500.0,0.0001127,2]
[323508321,1714059052318,-500.0,0.0001127,2]
[323508322,1714059052327,-500.0,0.0001127,2]
[323508323,1714059052336,-691.06,0.0001127,2]
[323508324,1714059052346,-500.0,0.0001127,2]
[323508325,1714059052356,-500.0,0.0001127,2]
[323508326,1714059052365,-500.0,0.0001127,2]
[323508327,1714059052374,-529.44,0.0001127,2]
[323508328,1714059052384,-500.0,0.0001127,2]
[323508329,1714059052393,-559.9,0.0001127,2]
[323508330,1714059052403,-500.0,0.0001127,2]
[323508331,1714059052412,-561.96,0.0001127,2]
[323508332,1714059052421,-500.0,0.0001127,2]
[323508333,1714059052431,-5580.94,0.0001127,2]
[323508334,1714059052440,-500.0,0.0001127,2]
[323508335,1714059052449,-574.31760723,0.0001127,2]
[323508336,1714059052459,-1608.39,0.0001127,2]
[323508337,1714059052468,-500.0,0.0001127,2]
[323508338,1714059052478,-510.41,0.0001127,2]
[323508339,1714059052487,-153.73158109,0.0001127,2]
[323508340,1714059052497,-500.0,0.0001127,2]
[323508341,1714059052506,-500.0,0.0001127,2]
[323508342,1714059052517,-793.69,0.0001127,2]
[323508343,1714059052527,-500.0,0.0001127,2]
[323508344,1714059052536,-500.0,0.0001127,2]
[323508345,1714059052546,-686.7,0.0001127,2]
[323508346,1714059052556,-500.0,0.0001127,2]
[323508347,1714059052565,-502.4330385,0.0001127,2]
[323508348,1714059052575,-708.87,0.0001127,2]
[323508349,1714059052584,-170.59,0.0001127,2]
[323508350,1714059052594,-590.01,0.0001127,2]
[323508351,1714059052603,-500.0,0.00011271,2]
[323508352,1714059052612,-500.0,0.00011271,2]
[323508353,1714059052622,-500.0,0.00011271,2]
[323508354,1714059052631,-500.0,0.00011271,2]
[323508355,1714059052640,-500.0,0.00011271,2]
[323508356,1714059052649,-500.0,0.00011271,2]
[323508357,1714059052660,-516.33343507,0.00011271,2]
[323508358,1714059052669,-500.0,0.00011271,2]
[323508359,1714059052678,-500.0,0.00011271,2]
[323508360,1714059052688,-500.0,0.00011271,2]
[323508361,1714059052697,-500.0,0.00011271,2]
[323508362,1714059052707,-808.63,0.00011271,2]
[323508363,1714059052717,-189.87,0.00011271,2]
[323508364,1714059052726,-500.0,0.00011271,2]
[323508365,1714059052736,-500.0,0.00011271,2]
[323508366,1714059052747,-607.54,0.00011271,2]
[323508367,1714059052757,-500.0,0.00011271,2]
[323508368,1714059052767,-973.16,0.00011271,2]
[323508369,1714059052777,-185.68,0.00011271,2]
[323508370,1714059052788,-500.0,0.00011271,2]
[323508371,1714059052797,-500.0,0.00011271,2]
[323508372,1714059052806,-500.0,0.00011271,2]
[323508373,1714059052817,-500.0,0.00011271,2]
[323508374,1714059052826,-576.47,0.00011271,2]
[323508375,1714059052837,-504.96,0.00011271,2]
[323508376,1714059052846,-500.0,0.00011271,2]
[323508377,1714059052855,-737.66,0.00011271,2]
[323508378,1714059052864,-500.0,0.00011271,2]
[323508379,1714059052873,-500.0,0.00011271,2]
[323508380,1714059052882,-500.0,0.00011271,2]
[323508381,1714059052892,-1144.12,0.00011271,2]
[323508382,1714059052901,-500.0,0.00011271,2]
[323508383,1714059052911,-500.0,0.00011271,2]
[323508384,1714059052920,-506.25,0.00011271,2]
[323508385,1714059052930,-646.12847561,0.00011271,2]
[323508386,1714059052939,-500.0,0.00011271,2]
[323508387,1714059052949,-500.0,0.00011271,2]
[323508388,1714059052958,-678.0,0.00011271,2]
[323508389,1714059052967,-500.0,0.00011271,2]
[323508390,1714059052977,-500.0,0.00011271,2]
[323508391,1714059052986,-500.0,0.00011271,2]
[323508392,1714059052995,-500.0,0.00011271,2]
[323508393,1714059053004,-500.0,0.00011271,2]
[323508394,1714059053014,-500.0,0.00011271,2]
[323508395,1714059053023,-500.0,0.00011271,2]
[323508396,1714059053034,-518.49,0.00011271,2]
[323508397,1714059053043,-500.0,0.00011271,2]
[323508398,1714059053052,-1413.5,0.00011271,2]
[323508399,1714059053062,-500.0,0.00011271,2]
[323508400,1714059053072,-500.0,0.00011271,2]
[323508401,1714059053081,-565.14449985,0.00011271,2]
[323508402,1714059053090,-500.0,0.00011271,2]
[323508403,1714059053100,-500.0,0.00011271,2]
[323508404,1714059053109,-500.0,0.00011271,2]
[323508405,1714059053118,-500.0,0.00011271,2]
[323508406,1714059053127,-500.0,0.00011271,2]
[323508407,1714059053137,-500.0,0.00011271,2]
[323508408,1714059053146,-500.0,0.00011271,2]
[323508409,1714059053155,-500.0,0.00011271,2]
[323508410,1714059053166,-880.47,0.00011271,2]
[323508411,1714059053175,-1068.2,0.00011271,2]
[323508412,1714059053184,-500.0,0.00011271,2]
[323508413,1714059053193,-500.0,0.00011271,2]
[323508414,1714059053203,-500.0,0.00011271,2]
[323508415,1714059053212,-500.0,0.00011271,2]
[323508416,1714059053222,-500.0,0.00011271,2]
[323508417,1714059053231,-500.0,0.00011271,2]
[323508418,1714059053241,-500.0,0.00011271,2]
[323508419,1714059053250,-500.0,0.00011271,2]
[323508420,1714059053259,-500.0,0.00011271,2]
[323508421,1714059053270,-204.22,0.00011271,2]
[323508422,1714059053279,-500.0,0.00011271,2]
[323508423,1714059053289,-222.99303092,0.00011271,2]
[323508424,1714059053298,-500.0,0.00011271,2]
[323508425,1714059053307,-500.0,0.00011271,2]
[323508426,1714059053316,-527.28,0.00011271,2]
[323508427,1714059053325,-500.0,0.00011271,2]
[323508428,1714059053334,-500.0,0.00011271,2]
[323508429,1714059053344,-795.36,0.00011271,2]
[323508430,1714059053353,-500.0,0.00011271,2]
[323508431,1714059053363,-370.46827853,0.00011271,2]
[323508432,1714059053371,-866.26,0.00011271,2]
[323508433,1714059053381,-646.85,0.00011271,2]
[323508434,1714059053391,-500.0,0.00011271,2]
[323508435,1714059053401,-500.0,0.00011271,2]
[323508436,1714059053411,-500.0,0.00011271,2]
[323508437,1714059053420,-500.0,0.00011271,2]
[323508438,1714059053429,-500.0,0.00011271,2]
[323508439,1714059053440,-566.07,0.00011271,2]
[323508440,1714059053451,-500.0,0.00011271,2]
[323508441,1714059053462,-500.0,0.00011271,2]
[323508442,1714059053471,-500.0,0.00011271,2]
[323508443,1714059053481,-500.0,0.00011271,2]
[323508444,1714059053489,-527.7,0.00011271,2]
[323508445,1714059053499,-500.0,0.00011271,2]
[323508446,1714059053508,-500.0,0.00011271,2]
[323508447,1714059053517,-500.0,0.00011271,2]
[323508448,1714059053526,-717.73,0.00011271,2]
[323508449,1714059053536,-500.0,0.00011271,2]
[323508450,1714059053545,-500.0,0.00011271,2]
[323508451,1714059053556,-500.0,0.00011271,2]
[323508452,1714059053722,-832.0,0.00011271,2]
[323508453,1714059053737,-500.0,0.00011271,2]
[323508454,1714059053747,-749.67,0.00011271,2]
[323508455,1714059053756,-500.0,0.00011271,2]
[323508456,1714059053765,-500.0,0.00011271,2]
[323508457,1714059053776,-1986.2,0.00011271,2]
[323508458,1714059053785,-500.0,0.00011271,2]
[323508459,1714059053794,-772.4,0.00011271,2]
[323508460,1714059053803,-500.0,0.00011271,2]
[323508461,1714059053812,-500.0,0.00011271,2]
[323508462,1714059053822,-783.66,0.00011271,2]
[323508463,1714059053831,-500.0,0.00011271,2]
[323508464,1714059053840,-500.0,0.00011271,2]
[323508465,1714059053849,-504.69947422,0.00011271,2]
[323508466,1714059053859,-500.0,0.00011271,2]
[323508467,1714059053868,-500.0,0.00011271,2]
[323508468,1714059053877,-500.0,0.00011271,2]
[323508469,1714059053886,-500.0,0.00011271,2]
[323508470,1714059053897,-11839.99,0.00011271,2]
[323508471,1714059053907,-557.72,0.00011271,2]
[323508472,1714059053917,-500.0,0.00011271,2]
[323508473,1714059053926,-558.49,0.00011271,2]
[323508474,1714059053937,-500.0,0.00011271,2]
[323508475,1714059053946,-500.0,0.00011271,2]
[323508476,1714059053955,-500.0,0.00011271,2]
[323508477,1714059053964,-500.0,0.00011271,2]
[323508478,1714059053973,-519.75,0.00011271,2]
[323508479,1714059053982,-500.0,0.00011271,2]
[323508480,1714059053992,-1745.95,0.00011271,2]
[323508481,1714059054002,-1167.17,0.00011271,2]
[323508482,1714059054011,-500.0,0.00011271,2]
[323508483,1714059054023,-500.0,0.00011271,2]
[323508484,1714059054032,-500.0,0.00011271,2]
[323508485,1714059054042,-1169.9,0.00011271,2]
[323508486,1714059054052,-1216.58,0.00011271,2]
[323508487,1714059054061,-500.0,0.00011271,2]
[323508488,1714059054072,-500.0,0.00011271,2]
[323508489,1714059054081,-500.0,0.00011271,2]
[323508490,1714059054091,-500.0,0.00011271,2]
[323508491,1714059054101,-500.0,0.00011271,2]
[323508492,1714059054110,-500.0,0.00011271,2]
[323508493,1714059054120,-500.0,0.00011271,2]
[323508494,1714059054130,-500.0,0.00011271,2]
[323508495,1714059054140,-500.0,0.00011271,2]
[323508496,1714059054149,-2165.95,0.00011271,2]
[323508497,1714059054158,-500.0,0.00011271,2]
[323508498,1714059054168,-500.0,0.00011271,2]
[323508499,1714059054177,-500.0,0.00011271,2]
[323508500,1714059054187,-501.32471629,0.00011271,2]
[323508501,1714059054196,-520.34,0.00011271,2]
[323508502,1714059054205,-613.55,0.00011271,2]
[323508503,1714059054215,-500.0,0.00011271,2]
[323508504,1714059054224,-500.0,0.00011271,2]
[323508505,1714059054234,-500.0,0.00011271,2]
[323508506,1714059054243,-500.0,0.00011271,2]
[323508507,1714059054253,-500.0,0.00011271,2]
[323508508,1714059054262,-1598.65,0.00011271,2]
[323508509,1714059054274,-632.83,0.00011271,2]
[323508510,1714059054284,-500.0,0.00011272,2]
[323508511,1714059054293,-500.0,0.00011272,2]